fUSD/lending_fUSD_20240614
["ID","MTS","AMOUNT","RATE_DAILY","PERIOD"]
[329497457,1718395865225,-500.0,0.00022739,3]
[329497458,1718395865258,-427.20489291,0.00022739,3]
[329497459,1718395865272,-839.72,0.00022739,3]
[329497460,1718395865287,-500.0,0.00022739,3]
[329497461,1718395865299,-500.0,0.00022739,3]
[329497462,1718395865322,-500.0,0.00022739,3]
[329497463,1718395865336,-594.14,0.00022739,3]
[329497464,1718395865366,-500.0,0.00022739,3]
[329497465,1718395865399,-1505.33,0.00022739,3]
[329497466,1718395865413,-1150.52,0.00022739,3]
[329497467,1718395865444,-992.07,0.00022739,3]
[329497468,1718395865471,-500.0,0.00022739,3]
[329497469,1718395865492,-500.0,0.00022739,3]
[329497470,1718395865537,-2085.76,0.00022739,3]
[329497471,1718395865595,-946.78,0.00022739,3]
[329497472,1718395865617,-862.04,0.00022739,3]
[329497473,1718395865637,-697.13,0.00022739,3]
[329497474,1718395865650,-629.32,0.00022739,3]
[329497475,1718395865678,-713.22,0.00022739,3]
[329497476,1718395865708,-500.0,0.00022739,3]
[329497477,1718395865730,-2680.278939,0.00022739,7]
[329497478,1718395865760,-4718.86,0.00022739,3]
[329497479,1718395865800,-1125.55,0.00022739,3]
[329497480,1718395865815,-527.7,0.00022739,3]
[329497481,1718395865844,-2680.278939,0.00022739,7]
[329497482,1718395865860,-1084.03,0.00022739,3]
[329497483,1718395865873,-500.0,0.00022739,3]
[329497484,1718395865900,-637.0,0.00022739,3]
[329497485,1718395865950,-500.0,0.00022739,3]
[329497486,1718395865964,-1967.08,0.00022739,3]
[329497487,1718395865990,-3519.49,0.00022739,3]
[329497488,1718395866018,-1714.17,0.00022739,3]
[329497489,1718395866030,-500.0,0.00022739,3]
[329497490,1718395866041,-3442.68,0.00022739,3]
[329497491,1718395866069,-5463.42,0.00022739,3]
[329497492,1718395866108,-3136.64,0.00022739,3]
[329497493,1718395866122,-686.16,0.00022739,3]
[329497494,1718395866147,-2601.95,0.00022739,3]
[329497495,1718395866159,-780.84,0.00022739,3]
[329497496,1718395866195,-743.65,0.00022739,3]
[329497497,1718395866228,-709.1,0.00022739,3]
[329497498,1718395866258,-9598.27,0.00022739,3]
[329497499,1718395866280,-500.0,0.00022739,3]
[329497500,1718395866298,-923.73,0.00022739,3]
[329497501,1718395866320,-500.0,0.00022739,3]
[329497502,1718395866334,-500.0,0.00022739,3]
[329497503,1718395866367,-1243.56,0.00022739,3]
[329497504,1718395866396,-2185.74,0.00022739,3]
[329497505,1718395866410,-500.0,0.00022739,3]
[329497506,1718395866452,-1031.09,0.00022739,3]
[329497507,1718395866511,-500.0,0.00022739,3]
[329497508,1718395866523,-2093.36,0.00022739,3]
[329497509,1718395866536,-356.98697932,0.00022739,3]
[329497510,1718395866548,-500.0,0.00022739,3]
[329497511,1718395866559,-4252.46,0.00022739,3]
[329497512,1718395866572,-500.0,0.00022739,3]
[329497513,1718395866635,-4475.47,0.00022739,3]
[329497514,1718395866656,-500.0,0.00022739,3]
[329497515,1718395866673,-2489.87,0.00022739,3]
[329497516,1718395866703,-1080.86,0.00022739,3]
[329497517,1718395866719,-3300.0,0.000229,8]
[329497518,1718395866736,-200.0,0.0002291,2]
[329497519,1718395866776,-2307.58055274,0.00022913,2]
[329497520,1718395866813,-968.0,0.00022931,2]
[329497521,1718395866847,-1000.0,0.00022976,4]
[329497522,1718395866858,-495.63139533,0.00023,2]
[329497523,1718395866883,-1300.0,0.00023,2]
[329497524,1718395866900,-500.0,0.00023013,2]
[329497525,1718395866920,-500.0,0.00023013,3]
[329497526,1718395866934,-500.0,0.00023013,2]
[329497527,1718395866949,-500.0,0.00023013,2]
[329497528,1718395866964,-500.0,0.00023013,3]
[329497529,1718395866988,-500.0,0.00023013,3]
[329497530,1718395867001,-500.0,0.00023013,3]
[329497531,1718395867013,-500.0,0.00023013,3]
[329497532,1718395867032,-500.0,0.00023013,3]
[329497533,1718395867047,-500.0,0.00023013,3]
[329497534,1718395867064,-500.0,0.00023013,3]
[329497535,1718395867081,-500.0,0.00023013,3]
[329497536,1718395867103,-500.0,0.00023013,3]
[329497537,1718395867140,-500.0,0.00023013,3]
[329497538,1718395867154,-500.0,0.00023013,3]
[329497539,1718395867168,-500.0,0.00023013,3]
[329497540,1718395867180,-500.0,0.00023013,3]
[329497541,1718395867192,-500.0,0.00023013,3]
[329497542,1718395867204,-1241.72,0.00023013,3]
[329497543,1718395867217,-500.0,0.00023013,3]
[329497544,1718395867232,-500.0,0.00023013,3]
[329497545,1718395867257,-500.0,0.00023013,3]
[329497546,1718395867278,-500.0,0.00023013,3]
[329497547,1718395867348,-500.0,0.00023013,3]
[329497548,1718395867389,-500.0,0.00023013,3]
[329497549,1718395867402,-151.0,0.00023013,7]
[329497550,1718395867429,-151.0,0.00023013,7]
[329497551,1718395867501,-500.0,0.00023013,3]
[329497552,1718395867514,-249.41109957,0.00023013,3]
[329497553,1718395867557,-500.0,0.00023013,3]
[329497554,1718395867581,-477.62972952,0.00023013,3]
[329497555,1718395867611,-500.0,0.00023013,3]
[329497556,1718395867637,-500.0,0.00023013,3]
[329497557,1718395867674,-500.0,0.00023013,3]
[329497558,1718395867692,-500.0,0.00023013,3]
[329497559,1718395867709,-500.0,0.00023013,3]
[329497560,1718395867728,-500.0,0.00023013,3]
[329497561,1718395867766,-500.0,0.00023013,3]
[329497562,1718395867789,-500.0,0.00023013,3]
[329497563,1718395867805,-500.0,0.00023013,3]
[329497564,1718395867826,-500.0,0.00023013,3]
[329497565,1718395867861,-551.54123776,0.00023013,3]
[329497566,1718395867879,-500.0,0.00023013,3]
[329497567,1718395867897,-970.82,0.00023013,3]
[329497568,1718395867940,-500.0,0.00023013,3]
[329497569,1718395867970,-500.0,0.00023013,3]
[329497570,1718395867983,-500.0,0.00023013,3]
[329497571,1718395867995,-500.0,0.00023013,3]
[329497572,1718395868023,-500.0,0.00023013,3]
[329497573,1718395868038,-651.79,0.00023013,3]
[329497574,1718395868056,-500.0,0.00023013,3]
[329497575,1718395868094,-500.0,0.00023013,3]
[329497576,1718395868121,-368.47640839,0.00023013,3]
[329497577,1718395868132,-500.0,0.00023013,3]
[329497578,1718395868156,-3647.32,0.00023013,3]
[329497579,1718395868187,-500.0,0.00023013,3]
[329497580,1718395868222,-544.67,0.00023013,3]
[329497581,1718395868252,-1031.67,0.00023013,3]
[329497582,1718395868285,-521.56641736,0.00023013,3]
[329497583,1718395868869,-15878.98,0.00022465,3]
[329497584,1718395868886,-15878.98,0.00022739,3]
[329497585,1718395868915,-112.05358264,0.00023013,3]
[329497586,1718395868929,-2159.98641736,0.00023013,3]
[329497587,1718395869029,-312.3160075,0.00023013,3]
[329497588,1718395869046,-6728.60757514,0.00023013,3]
[329497589,1718395869058,-939.54,0.00023013,3]
[329497590,1718395869083,-260.17210882,0.00023013,3]
[329497591,1718395869096,-738.02,0.00023013,3]
[329497592,1718395869117,-538.75,0.00023013,3]
[329497593,1718395869136,-500.0,0.00023013,3]
[329497594,1718395869152,-2813.55,0.00023013,3]
[329497595,1718395869167,-500.0,0.00023013,3]
[329497596,1718395869181,-500.0,0.00023013,3]
[329497597,1718395869194,-1455.19,0.00023013,3]
[329497598,1718395869214,-3139.26,0.00023013,3]
[329497599,1718395869242,-2152.17,0.00023013,3]
[329497600,1718395869280,-12364.67815413,0.00023013,3]
[329497601,1718395869573,-594.77577182,0.00021917,2]
[329497602,1718395869589,-1637.35184587,0.00023013,3]
[329497603,1718395869601,-500.0,0.00023013,3]
[329497604,1718395869624,-1575.55,0.00023013,3]
[329497605,1718395869634,-6069.95853538,0.00023013,3]
[329497606,1718395869648,-1229.33519723,0.00023013,3]
[329497607,1718395869809,-331.86968873,0.00021764,2]
[329497608,1718395869833,-7.3265668,0.00023013,3]
[329497609,1718395869847,-6562.09625996,0.00023013,3]
[329497610,1718395869896,-16344.32344063,0.00023013,3]
[329497611,1718395869915,-500.0,0.00023013,3]
[329497612,1718395869931,-500.0,0.00023013,3]
[329497613,1718395869942,-500.0,0.00023013,3]
[329497614,1718395869955,-513.44,0.00023013,3]
[329497615,1718395870040,-1592.71,0.00023013,3]
[329497616,1718395870051,-1369.4958917,0.00023013,3]
[329497617,1718395870142,-895.73293621,0.00023013,3]
[329497618,1718395870176,-3029.49117209,0.00023013,3]
[329497619,1718395870193,-500.0,0.00023013,3]
[329497620,1718395870232,-500.0,0.00023013,3]
[329497621,1718395870268,-559.05,0.00023013,3]
[329497622,1718395870283,-500.0,0.00023013,3]
[329497623,1718395870330,-744.96,0.00023013,3]
[329497624,1718395870344,-500.0,0.00023013,3]
[329497625,1718395870380,-144.54239291,0.00023013,3]
[329497626,1718395870588,-355.45760709,0.00023013,3]
[329497627,1718395870626,-51.49609467,0.00023013,3]
[329497628,1718395870682,-448.50390533,0.00023013,3]
[329497629,1718395870698,-500.0,0.00023013,3]
[329497630,1718395870723,-572.42885752,0.00023013,3]
[329497631,1718395870761,-585.81080821,0.00023013,3]
[329497632,1718395870776,-479.15033427,0.00023013,3]
[329497633,1718395870787,-1924.42879149,0.00023013,3]
[329497634,1718395870808,-343.51120851,0.00023013,3]
[329497635,1718395870818,-65.52984753,0.00023013,3]
[329497636,1718395871058,-1344.22015247,0.00023013,3]
[329497637,1718395871075,-500.0,0.00023013,3]
[329497638,1718395871087,-584.01,0.00023013,3]
[329497639,1718395871099,-1623.64,0.00023013,3]
[329497640,1718395871117,-935.26,0.00023013,3]
[329497641,1718395871147,-1212.33,0.00023013,3]
[329497642,1718395871158,-500.0,0.00023013,3]
[329497643,1718395871184,-653.06,0.00023013,3]
[329497644,1718395871203,-500.0,0.00023013,3]
[329497645,1718395871217,-500.0,0.00023013,3]
[329497646,1718395871232,-500.0,0.00023013,3]
[329497647,1718395871243,-263.32521554,0.00023013,3]
[329497648,1718395871266,-1799.55478446,0.00023013,3]
[329497649,1718395871312,-500.0,0.00023013,3]
[329497650,1718395871333,-376.37987784,0.00023013,3]
[329497651,1718395871460,-123.62012216,0.00023013,3]
[329497652,1718395871481,-500.0,0.00023013,3]
[329497653,1718395871495,-863.57,0.00023013,3]
[329497654,1718395871516,-785.46,0.00023013,3]
[329497655,1718395871532,-1878.16,0.00023013,3]
[329497656,1718395871564,-1017.9,0.00023013,3]
[329497657,1718395871625,-500.0,0.00023013,3]
[329497658,1718395871638,-567.66,0.00023013,3]
[329497659,1718395871655,-759.34,0.00023013,3]
[329497660,1718395871682,-5709.54,0.00023013,3]
[329497661,1718395871698,-500.0,0.00023013,3]
[329497662,1718395871715,-632.42,0.00023013,3]
[329497663,1718395871727,-5663.87,0.00023013,3]
[329497664,1718395871747,-940.97,0.00023013,3]
[329497665,1718395871766,-964.88,0.00023013,3]
[329497666,1718395871790,-500.0,0.00023013,3]
[329497667,1718395871833,-788.33,0.00023013,3]
[329497668,1718395871852,-500.0,0.00023013,3]
[329497669,1718395871867,-839.72,0.00023013,3]
[329497670,1718395871885,-500.0,0.00023013,3]
[329497671,1718395871903,-500.0,0.00023013,3]
[329497672,1718395871926,-500.0,0.00023013,3]
[329497673,1718395871937,-500.0,0.00023013,3]
[329497674,1718395871949,-594.14,0.00023013,3]
[329497675,1718395871961,-1505.33,0.00023013,3]
[329497676,1718395871979,-1150.52,0.00023013,3]
[329497677,1718395872009,-992.07,0.00023013,3]
[329497678,1718395872022,-500.0,0.00023013,3]
[329497679,1718395872042,-500.0,0.00023013,3]
[329497680,1718395872059,-946.78,0.00023013,3]
[329497681,1718395872078,-2085.76,0.00023013,3]
[329497682,1718395872120,-862.04,0.00023013,3]
[329497683,1718395872160,-697.13,0.00023013,3]
[329497684,1718395872188,-629.32,0.00023013,3]
[329497685,1718395872208,-713.22,0.00023013,3]
[329497686,1718395872225,-500.0,0.00023013,3]
[329497687,1718395872246,-4718.86,0.00023013,3]
[329497688,1718395872260,-1125.55,0.00023013,3]
[329497689,1718395872293,-527.7,0.00023013,3]
[329497690,1718395872306,-290.7128689,0.00023013,3]
[329497691,1718395872330,-793.3171311,0.00023013,3]
[329497692,1718395872346,-500.0,0.00023013,3]
[329497693,1718395872359,-637.0,0.00023013,3]
[329497694,1718395872380,-500.0,0.00023013,3]
[329497695,1718395872396,-1967.08,0.00023013,3]
[329497696,1718395872408,-202.98618482,0.00023013,3]
[329497697,1718395872424,-3316.50381518,0.00023013,3]
[329497698,1718395872449,-1714.17,0.00023013,3]
[329497699,1718395872479,-500.0,0.00023013,3]
[329497700,1718395872490,-3442.68,0.00023013,3]
[329497701,1718395872504,-5463.42,0.00023013,3]
[329497702,1718395872518,-3136.64,0.00023013,3]
[329497703,1718395872532,-686.16,0.00023013,3]
[329497704,1718395872548,-2601.95,0.00023013,3]
[329497705,1718395872570,-780.84,0.00023013,3]
[329497706,1718395872588,-743.65,0.00023013,3]
[329497707,1718395872601,-709.1,0.00023013,3]
[329497708,1718395872617,-9598.27,0.00023013,3]
[329497709,1718395872651,-923.73,0.00023013,3]
[329497710,1718395872673,-500.0,0.00023013,3]
[329497711,1718395872693,-500.0,0.00023013,3]
[329497712,1718395872704,-500.0,0.00023013,3]
[329497713,1718395872718,-1243.56,0.00023013,3]
[329497714,1718395872730,-2185.74,0.00023013,3]
[329497715,1718395872750,-500.0,0.00023013,3]
[329497716,1718395872763,-1031.09,0.00023013,3]
[329497717,1718395872780,-151.0,0.00023013,7]
[329497718,1718395872791,-500.0,0.00023013,3]
[329497719,1718395872803,-2093.36,0.00023013,3]
[329497720,1718395872814,-500.0,0.00023013,3]
[329497721,1718395872828,-4252.46,0.00023013,3]
[329497722,1718395872840,-500.0,0.00023013,3]
[329497723,1718395872855,-4475.47,0.00023013,3]
[329497724,1718395872868,-500.0,0.00023013,3]
[329497725,1718395872879,-2489.87,0.00023013,3]
[329497726,1718395872890,-1080.86,0.00023013,3]
[329497727,1718395872901,-15878.98,0.00023013,3]
[329497728,1718395872913,-152.0,0.00023071,4]
[329497729,1718395872927,-11866.842589,0.000231,2]
[329497730,1718395872937,-200.0,0.00023101,2]
[329497731,1718395872949,-500.0,0.00023101,2]
[329497732,1718395872959,-171.2025191,0.0002312,2]
[329497733,1718395872972,-175.2,0.0002312,2]
[329497734,1718395872983,-587.44357584,0.00023141,2]
[329497735,1718395873000,-412.55642416,0.00023141,2]
[329497736,1718395873016,-500.0,0.00023176,2]
[329497737,1718395873029,-500.0,0.00023176,2]
[329497738,1718395873047,-500.0,0.00023176,2]
[329497739,1718395873069,-500.0,0.00023176,2]
[329497740,1718395873087,-500.0,0.00023176,2]
[329497741,1718395873123,-416.37,0.00023176,2]
[329497742,1718395873146,-1000.0,0.0002318,2]
[329497743,1718395873159,-154.2225365,0.00023184,2]
[329497744,1718395873172,-328.20270912,0.00023187,2]
[329497745,1718395873185,-150.0,0.000232,2]
[329497746,1718395873196,-291.0,0.000232,2]
[329497747,1718395873208,-150.0,0.000232,3]
[329497748,1718395873220,-1474.44823664,0.00023203,2]
[329497749,1718395873243,-1000.0,0.0002322,2]
[329497750,1718395873262,-1000.0,0.0002326,2]
[329497751,1718395873290,-10000.0,0.00023274,2]
[329497752,1718395873320,-155.0,0.0002328,6]
[329497753,1718395873374,-151.0,0.00023284,7]
[329497754,1718395873409,-151.0,0.00023284,7]
[329497755,1718395873432,-213.6882806,0.00023284,2]
[329497756,1718395873453,-5891.18181298,0.00023284,2]
[329497757,1718395873476,-25973.70546303,0.00023284,2]
[329497758,1718395873513,-866.3071139,0.00023284,2]
[329497759,1718395873600,-701.11,0.00023284,2]
[329497760,1718395944435,319.9,0.00026853,120]
[329497768,1718396518035,334.08,0.00024982,120]
[329497769,1718396518339,334.08,0.00027481,120]
[329497772,1718396832190,-409.85937535,0.00016087,2]
[329497773,1718396832268,-355.34901942,0.00016088,2]
[329497774,1718396832312,-2352.56749518,0.00016089,2]
[329497775,1718396832377,-733.86039657,0.0001609,2]
[329497776,1718396832405,-1012.0,0.00016189,2]
[329497777,1718396832435,-179.61,0.00016712,2]
[329497778,1718396832466,-150.0,0.00017807,2]
[329497779,1718396832494,-4236.83519429,0.00018296,2]
[329497780,1718396949208,-421.08,0.00017926,2]
[329497781,1718396949247,-150.99,0.00018296,2]
[329497782,1718396949326,-499.99,0.00018296,2]
[329497783,1718396949386,-691.61,0.00019452,2]
[329497784,1718396949449,-719.16046107,0.00019625,2]
[329497800,1718397033885,-409.85937535,0.00019451,2]
[329497801,1718397033920,-1189.88413893,0.00019625,2]
[329497802,1718397033958,-300.0,0.00019642,2]
[329497803,1718397034000,-8464.13207883,0.00019643,2]
[329497804,1718397034438,-14417.21792117,0.00019643,2]
[329497805,1718397034451,-222.28,0.00019654,2]
[329497806,1718397034474,-250.0,0.00019667,2]
[329497807,1718397034486,-1500.26831982,0.00019667,2]
[329497808,1718397034729,-650.01339646,0.00019667,2]
[329497809,1718397035132,-689.30241408,0.00019667,2]
[329497810,1718397035460,-772.0,0.00019667,2]
[329497811,1718397035475,-1813.97375158,0.00019667,2]
[329497812,1718397035494,-244.62211806,0.00019667,2]
[329497815,1718397035506,-1528.47,0.0001968,2]
[329497817,1718397035516,-355.34901942,0.00019725,2]
[329497818,1718397035527,-1000.0,0.00019772,2]
[329497821,1718397035558,-598.36,0.00019812,2]
[329497823,1718397035580,-1280.15,0.00019815,2]
[329497824,1718397035590,-250.0,0.00019819,2]
[329497826,1718397035601,-487.26,0.00019825,2]
[329497829,1718397035617,-849.94298252,0.00019847,2]
[329497831,1718397035636,-448.12958754,0.00019847,2]
[329497834,1718397035673,-925.87742994,0.00019847,2]
[329497836,1718397035684,-351.88844729,0.00019855,2]
[329497838,1718397035698,-1852.42,0.00019857,2]
[329497841,1718397035726,-333.49,0.00019966,2]
[329497842,1718397035756,-334.08,0.00019986,2]
[329497843,1718397035770,-177.03,0.00020086,2]
[329497845,1718397035790,-177.03,0.00020142,2]
[329497846,1718397035815,-3298.5783164,0.00020145,2]
[329497849,1718397035864,-26701.4116836,0.00020145,2]
[329497850,1718397035877,-153.53,0.0002015,2]
[329497852,1718397035910,-153.53,0.0002017,2]
[329497854,1718397035924,-421.08,0.00020189,2]
[329497856,1718397035936,-153.53,0.0002019,2]
[329497858,1718397035949,-167.86,0.00020191,2]
[329497860,1718397035967,-177.03,0.00020197,2]
[329497862,1718397035992,-894.0,0.000202,2]
[329497865,1718397036009,-153.53,0.0002021,2]
[329497867,1718397036043,-153.53,0.0002023,2]
[329497869,1718397036088,-153.53,0.0002025,2]
[329497871,1718397036108,-177.03,0.00020252,2]
[329497873,1718397036127,-177.03,0.00020307,2]
[329497874,1718397036144,-177.03,0.00020362,2]
[329497876,1718397036155,-176.95,0.00020365,2]
[329497878,1718397036172,-235.10520157,0.00020373,2]
[329497880,1718397036183,-177.03,0.00020417,2]
[329497881,1718397036194,-177.03,0.00020472,2]
[329497883,1718397036211,-177.03,0.00020527,2]
[329497885,1718397036225,-1067.59886946,0.00020579,2]
[329497887,1718397036264,-562.92418979,0.00020579,2]
[329497889,1718397036280,-365.35520824,0.00020579,2]
[329497891,1718397036292,-6073.26632542,0.0002058,2]
[329497893,1718397036313,-177.03,0.00020582,2]
[329497895,1718397036352,-177.03,0.00020637,2]
[329497897,1718397036368,-177.03,0.00020693,2]
[329497901,1718397036427,-177.03,0.00020748,2]
[329497903,1718397036460,-177.03,0.00020803,2]
[329497906,1718397036493,-177.03,0.00020858,2]
[329497907,1718397036503,-177.03,0.00020913,2]
[329497909,1718397036528,-177.03,0.00020968,2]
[329497911,1718397036564,-1250.0,0.00021,2]
[329497914,1718397036586,-177.03,0.00021023,2]
[329497916,1718397036598,-177.03,0.00021078,2]
[329497918,1718397036616,-177.03,0.00021133,2]
[329497920,1718397036628,-300.0,0.00021396,2]
[329497922,1718397036640,-151.2,0.00021476,2]
[329497924,1718397036652,-319.9,0.00021482,2]
[329497926,1718397036662,-659.5783,0.00021566,2]
[329497928,1718397036675,-3673.297,0.00021666,2]
[329497930,1718397036686,-151.97,0.00021682,2]
[329497931,1718397036703,-3683.072,0.00021687,2]
[329497933,1718397036717,-1093.28762412,0.00021688,2]
[329497934,1718397036731,-3600.101,0.00021689,2]
[329497936,1718397036757,-205.93972756,0.00021697,2]
[329497938,1718397036778,-3682.397,0.00021698,2]
[329497941,1718397036828,-3711.29,0.00021699,2]
[329497944,1718397036866,-400.0,0.000217,7]
[329497946,1718397036898,-197.64102241,0.00021704,2]
[329497947,1718397036915,-1000.0,0.00021706,2]
[329497949,1718397036944,-2500.0,0.00021706,2]
[329497950,1718397036957,-18123.0184,0.00021716,2]
[329497952,1718397036971,-307.55886117,0.00021717,2]
[329497954,1718397037010,-172.39,0.00021745,2]
[329497955,1718397037026,-800.0,0.000218,7]
[329497956,1718397037049,-51226.2409196,0.00021806,3]
[329497957,1718397037061,-178.3511849,0.00021815,2]
[329497958,1718397037073,-165.93484437,0.00021815,2]
[329497959,1718397037084,-39883.2260752,0.00021816,2]
[329497960,1718397037216,-765.29022052,0.00021816,2]
[329497961,1718397037234,-900.37502554,0.00021816,2]
[329497962,1718397037252,-696.77431602,0.00021816,2]
[329497963,1718397037268,-452.75892829,0.00021816,2]
[329497965,1718397040000,-355.34901942,0.0001945,2]
[329497966,1718397040015,-622.34348005,0.00021816,2]
[329497967,1718397040049,-335.76750053,0.00021816,2]
[329497968,1718397041611,-1922.61898915,0.00021816,2]
[329497969,1718397042162,238.2,0.00028,90]
[329498034,1718397044365,-3598.342,0.00021715,2]
[329498039,1718397044409,-7243.49755116,0.00021816,2]
[329498050,1718397045067,-35329.11901354,0.00021816,2]
[329498051,1718397045129,-43068.1178,0.00021816,2]
[329498052,1718397045148,-39360.8957,0.00021816,2]
[329498053,1718397045224,-100000.0,0.00021816,2]
[329498054,1718397045272,-10000.0,0.00021817,2]
[329498055,1718397045284,-1000.0,0.00021817,2]
[329498056,1718397045296,-182.17903324,0.00021817,2]
[329498057,1718397045348,-174.72044621,0.00021817,2]
[329498058,1718397045388,-151.75,0.00021897,2]
[329498059,1718397045410,-208.90252247,0.00021897,2]
[329498060,1718397045447,-1200.0,0.000219,7]
[329498061,1718397045476,-29306.83486306,0.00021906,3]
[329498062,1718397045497,-124371.88789594,0.00021906,3]
[329498063,1718397045509,-151.75,0.00021906,2]
[329498064,1718397045534,-7423.279375,0.00021907,3]
[329498065,1718397045564,-615.17605664,0.00021907,3]
[329498066,1718397045586,-2123.77016568,0.00021907,3]
[329498067,1718397045875,-763.48000001,0.00021907,3]
[329498068,1718397045950,-427.08391972,0.00021907,3]
[329498069,1718397045987,-337.09276402,0.00021907,3]
[329498070,1718397046020,-3424.5,0.00021907,3]
[329498071,1718397046034,-703.9999999,0.00021907,3]
[329498072,1718397046506,-206161.99503703,0.00021907,3]
[329498073,1718397046520,-151.75,0.00021907,2]
[329498074,1718397046532,-1863.69274956,0.00021915,2]
[329498075,1718397046548,-3777.13778724,0.00021916,2]
[329498076,1718397046559,-267026.99567161,0.00021916,2]
[329498077,1718397046573,-38193.4189527,0.00021916,2]
[329498078,1718397046585,-511.09271668,0.00021917,2]
[329498079,1718397046605,-265.84526037,0.00021917,2]
[329498080,1718397046629,-550.07668007,0.00021917,2]
[329498081,1718397046650,-502.66711681,0.00021917,2]
[329498082,1718397046684,-500.0,0.00021917,2]
[329498083,1718397046712,-527.45797371,0.00021917,2]
[329498084,1718397046728,-257.82786445,0.00021917,2]
[329498085,1718397046756,-500.0,0.00021917,2]
[329498086,1718397046771,-500.0,0.00021917,2]
[329498087,1718397046797,-500.0,0.00021917,2]
[329498088,1718397046835,-508.03176646,0.00021917,2]
[329498089,1718397046869,-500.0,0.00021917,2]
[329498090,1718397046983,-500.0,0.00021917,2]
[329498091,1718397047009,-500.0,0.00021917,2]
[329498092,1718397047060,-500.0,0.00021917,2]
[329498093,1718397047077,-510.16096089,0.00021917,2]
[329498094,1718397047089,-512.49,0.00021917,2]
[329498095,1718397047106,-522.97110514,0.00021917,2]
[329498096,1718397047126,-500.0,0.00021917,2]
[329498097,1718397047141,-523.23,0.00021917,2]
[329498098,1718397047154,-509.58871154,0.00021917,2]
[329498099,1718397047176,-500.0,0.00021917,2]
[329498100,1718397047187,-505.58491773,0.00021917,2]
[329498101,1718397047208,-500.0,0.00021917,2]
[329498102,1718397047221,-500.0,0.00021917,2]
[329498103,1718397047234,-511.02437322,0.00021917,2]
[329498104,1718397047258,-518.88198698,0.00021917,2]
[329498105,1718397047286,-510.46912724,0.00021917,2]
[329498106,1718397047308,-500.0,0.00021917,2]
[329498107,1718397047322,-500.0,0.00021917,2]
[329498108,1718397047348,-507.47146396,0.00021917,2]
[329498109,1718397047376,-507.34570408,0.00021917,2]
[329498110,1718397047401,-500.0,0.00021917,2]
[329498111,1718397047420,-304.428493,0.00021917,2]
[329498112,1718397047436,-634.38291587,0.00021917,2]
[329498113,1718397047453,-511.35931011,0.00021917,2]
[329498114,1718397047465,-500.0,0.00021917,2]
[329498115,1718397047484,-506.34312779,0.00021917,2]
[329498116,1718397047497,-505.22110552,0.00021917,2]
[329498117,1718397047510,-500.0,0.00021917,2]
[329498118,1718397047523,-500.0,0.00021917,2]
[329498120,1718397047538,-505.4333435,0.00021917,2]
[329498121,1718397047549,-500.0,0.00021917,2]
[329498122,1718397047560,-500.0,0.00021917,2]
[329498123,1718397047570,-509.56694635,0.00021917,2]
[329498124,1718397047581,-486.8718452,0.00021917,2]
[329498125,1718397047591,-500.0,0.00021917,2]
[329498126,1718397047635,-512.98671695,0.00021917,2]
[329498127,1718397047646,-512.47440511,0.00021917,2]
[329498128,1718397047656,-511.55835432,0.00021917,2]
[329498129,1718397047687,-529.17,0.00021917,2]
[329498130,1718397047718,-501.46315362,0.00021917,2]
[329498131,1718397047738,-500.0,0.00021917,2]